Cogmind - Beta 14 @@@ ROGUE MODE // 2024.12.03 @ 16:25:01 Player: akira Result: Destroyed by D-53 Grenadier with Mini Grenade Launcher Performance ------------- Evolutions (0) 0 Regions Visited (4) 800 Robots Destroyed (25) 125 Value Destroyed (559) 559 Prototype IDs (24) 480 Alien Tech Used (0) 0 Bonus (272) 272 TOTAL SCORE: 2236 Bonus ------- Follower Combat Kills 25 Aligned with FarCom 300 Friendly Fire -53 Cogmind --------- Core Integrity 0/250 Matter 227/300 Energy 230/265 System Corruption 3% Temperature Cool (0) Movement Rolling (115) Ox1 Location -9/Mines Parts ------- > --- POWER (1) -------- Reinforced Ion Engine > --- PROPULSION (2) --- Light Treads Compact Wheel > --- UTILITY (2) ------ Medium Storage Unit ECM Suite > --- WEAPON (2) ------- (None) > --- INVENTORY (10) --- Ion Engine Superbattery (1500) Structural Scanner Experimental Sensor Array Hacking Suite Grenade Launcher Peak State ------------ > --- POWER ------------ Light Nuclear Core > --- PROPULSION ------- Aluminum Leg Aluminum Leg > --- UTILITY ---------- Medium Storage Unit Experimental Sensor Array > --- WEAPON ----------- Particle Gun Light Assault Rifle > --- INVENTORY -------- Ion Engine Light Treads Light Treads Compact Wheel Superbattery Structural Scanner ECM Suite Light Armor Plating Hacking Suite Grenade Launcher [Rating: 20] Favorites ----------- Power Ion Engine Engine Ion Engine Power Core Light Nuclear Core Propulsion Aluminum Leg Treads Light Treads Leg Aluminum Leg Utility Medium Storage Unit Device Seismic Detector Storage Medium Storage Unit Protection Light Armor Plating Weapon Light Assault Rifle Energy Gun Particle Gun Ballistic Gun Light Assault Rifle Launcher Grenade Launcher Build | -11 -10 -10 -10 -9 ------- Run | Yrd Mat Min Exi Min Slots Evolved . | . . . . . Power . | . . . . . Propulsion . | . . . . . Utility . | . . . . . Weapon . | . . . . . Parts Attached 25 | 6 6 4 1 8 Power 4 | 1 2 . . 1 Engine 3 | 1 1 . . 1 Core 1 | . 1 . . . Reactor . | . . . . . Propulsion 8 | 2 1 2 . 3 Treads 2 | . . . . 2 Leg 5 | 2 1 2 . . Wheel 1 | . . . . 1 Hover . | . . . . . Flight . | . . . . . Utility 7 | 1 2 1 1 2 Device 4 | . 1 1 1 1 Storage 2 | 1 1 . . . Processor . | . . . . . Hackware . | . . . . . Protection 1 | . . . . 1 Artifact . | . . . . . Weapon 6 | 2 1 1 . 2 Energy Gun 2 | . . 1 . 1 Energy Cannon . | . . . . . Ballistic Gun 3 | 2 1 . . . Ballistic Cannon . | . . . . . Launcher 1 | . . . . 1 Special Weapon . | . . . . . Impact Weapon . | . . . . . Slashing Weapon . | . . . . . Piercing Weapon . | . . . . . Special Melee Weapon . | . . . . . Unidentified Prototypes 1 | . . . 1 . Parts Lost 9 | . 1 1 . 7 Power 1 | . . . . 1 Propulsion 3 | . . . . 3 Utility 2 | . . 1 . 1 Weapon 3 | . 1 . . 2 Highest Loss Streak 6 | . 1 1 . 6 To Critical Strikes 1 | . . . . 1 Average Slot Usage (%) 99 | . 99 99 100 97 Engine 8 | . 12 . . 13 Core 5 | . 1 14 14 . Leg 27 | . 28 28 28 27 Device 11 | . 12 13 14 . Storage 14 | . 14 14 14 14 Protection 1 | . . . . 13 Energy Gun 5 | . . 13 14 12 Ballistic Gun 22 | . 28 14 14 12 Peak Build Rating 20 | 6 10 14 20 12 Average Rating 9 | 4 7 13 16 10 On Entrance 10 | . 6 10 14 20 Naked Turns . | . . . . . Heaviest Build 27 | 13 23 20 20 27 Greatest Support 40 | 20 20 20 20 40 Greatest Overweight (x) 4 | 4 1 . . 1 Average Overweight (x) . | . . . . . Largest Inventory Capacity 10 | 8 10 10 10 10 Average Capacity 9 | 7 9 10 10 10 Most Carried 10 | 8 10 10 10 10 Average Carried 9 | 5 8 10 10 9 Final Capacity 10 | 8 10 10 10 10 Final Carried 10 | 7 10 10 10 6 Class Distribution -------------------- 62% | Mutant 37% | Scavenger-Mutant Dominant Class ---------------- Mutant | -10/Materials Scavenger-Mutant | -10/Mines Scavenger-Mutant | -10/Exiles Scavenger-Mutant | -9/Mines Resources | -11 -10 -10 -10 -9 ----------- Run | Yrd Mat Min Exi Min Matter Collected 648 | 249 315 49 . 35 Remotely . | . . . . . Salvage Created 736 | 81 485 76 . 94 Parts 56 | 7 35 7 . 7 Haulers Intercepted . | . . . . . Recyclers Shooed 1 | 1 . . . . Parts Field Recycled . | . . . . . Retrieved Matter . | . . . . . Parts Self-Destructed . | . . . . . Prevented . | . . . . . Kills | -11 -10 -10 -10 -9 ------- Run | Yrd Mat Min Exi Min Combat Hostiles Destroyed 20 | . 11 3 . 6 Guns 16 | . 11 3 . 2 AOE 4 | . . . . 4 Classes Destroyed 9 | 1 5 . . 3 Builder 1 | . 1 . . . Tunneler 4 | 4 . . . . Operator 1 | . 1 . . . Watcher 2 | . 2 . . . Swarmer 5 | . 3 2 . . Grunt 10 | . 8 1 . 1 Brawler 1 | . . . . 1 Zionite 1 | . . . . 1 Assembled 4 | . . . . 4 Best Kill Streak 4 | 4 3 1 . 4 Combat Bots Only 4 | . 3 1 . 4 Max Kills in Single Turn 4 | 1 1 1 . 4 Gunslinging . | . . . . . Exploded 3 | . . . . 3 Melee . | . . . . . Uniques/NPCs Destroyed . | . . . . . Combat | -11 -10 -10 -10 -9 -------- Run | Yrd Mat Min Exi Min Hostile Shots Fired 107 | . 61 9 . 37 Missed 20 | . 15 1 . 4 Damage Taken 1643 | . 576 96 . 971 Core 272 | . 82 21 . 169 Absorbed by Shields . | . . . . . Core Remaining (%) 100 | 100 . . . . Volleys Fired 94 | 11 63 8 . 12 Largest 2 | 2 2 2 . 2 Hottest 85 | 40 40 85 . 85 Shots Fired 183 | 22 125 16 . 20 Gun 179 | 22 125 16 . 16 Cannon . | . . . . . Launcher 4 | . . . . 4 Special . | . . . . . Kinetic 166 | 22 125 11 . 8 Thermal 13 | . . 5 . 8 Explosive 4 | . . . . 4 Electromagnetic . | . . . . . Robot Hit Streak 13 | 5 13 3 . 8 Robot Miss Streak 4 | 1 4 1 . 2 Penetration Max . | . . . . . Secondary Targets 1 | . 1 . . . Max Gunslinging Chain 1 | . 1 . . . Shots Hit Robots 121 | 15 81 10 . 15 Core Hits 54 | 6 32 5 . 11 Critical Kills . | . . . . . Critical Parts Destroyed . | . . . . . Critical Strikes . | . . . . . Melee Attacks . | . . . . . Impact . | . . . . . Slashing . | . . . . . Piercing . | . . . . . Sneak Attacks . | . . . . . Combat Hostiles . | . . . . . Follow-up Attacks . | . . . . . Damage Inflicted 1434 | 161 817 88 . 368 Guns 1197 | 161 817 88 . 131 Cannons . | . . . . . Explosions 237 | . . . . 237 Melee . | . . . . . Ramming . | . . . . . Kinetic 1087 | 161 817 72 . 37 Thermal 110 | . . 16 . 94 Explosive 237 | . . . . 237 Electromagnetic . | . . . . . Impact . | . . . . . Slashing . | . . . . . Piercing . | . . . . . Highest Corruption 3 | . . . . 3 Average Corruption 3 | . . . . 3 Corruption Purged . | . . . . . Corruption Blocked . | . . . . . Effects 3 | . . . . 3 Message Errors 2 | . . . . 2 Data Loss (minor) 1 | . . . . 1 Overload Shots . | . . . . . Overflow Damage 10 | . . . . 10 Projectiles . | . . . . . Explosions 10 | . . . . 10 Melee . | . . . . . Knockbacks . | . . . . . Impact . | . . . . . Kinetic . | . . . . . Secondary . | . . . . . Self-Inflicted Damage 73 | . . . . 73 Shots 3 | . . . . 3 Rammed . | . . . . . Targets Rammed . | . . . . . Kicked . | . . . . . Crushed . | . . . . . Highest Temperature 224 | . 26 20 . 224 Average Temperature 41 | . 8 11 . 91 Received Heat Transfer 419 | . 303 42 . 74 Siege Activations . | . . . . . Robots Corrupted . | . . . . . Combat Hostiles . | . . . . . Parts Fried . | . . . . . Impact Corruptions . | . . . . . Robots Melted . | . . . . . Combat Hostiles . | . . . . . Parts Melted . | . . . . . Heat Transferred 259 | . . 37 . 222 Parts Sabotaged . | . . . . . Parts Stolen . | . . . . . Parts Stripped . | . . . . . Power Chain Reactions . | . . . . . Alert | -11 -10 -10 -10 -9 ------- Run | Yrd Mat Min Exi Min Peak Influence 159 | 20 159 129 . 54 Initial 61 | . 13 61 . . Average 65 | 7 65 99 . 47 Maximum Alert Level . | . . . . . Low Security (%) 100 | 100 100 100 . 100 Level 1 . | . . . . . Level 2 . | . . . . . Level 3 . | . . . . . Level 4 . | . . . . . Level 5 . | . . . . . High Security . | . . . . . Max Security . | . . . . . Squads Dispatched 2 | . 2 . . . Investigation 1 | . 1 . . . Extermination . | . . . . . Reinforcement 1 | . 1 . . . Assault . | . . . . . Garrison . | . . . . . Intercept . | . . . . . Searches Triggered . | . . . . . Construction Impeded . | . . . . . Haulers Reinforced . | . . . . . Active Scanning Responses . | . . . . . Cargo Convoy Interrupts . | . . . . . Stealth | -11 -10 -10 -10 -9 --------- Run | Yrd Mat Min Exi Min Distress Signals 2 | . 2 . . . Communications Jammed . | . . . . . Distress Signals . | . . . . . Times Spotted 36 | . 23 4 . 9 Peak Tracking Total 4 | . 4 2 . 4 Tactical Retreats 1 | . 1 . . . Traps | -11 -10 -10 -10 -9 ------- Run | Yrd Mat Min Exi Min Traps Triggered 1 | . 1 . . . Indirectly . | . . . . . Trap Hack Attempts . | . . . . . Triggered . | . . . . . Disarmed . | . . . . . Reprogrammed . | . . . . . Reused . | . . . . . Traps Extracted . | . . . . . Installed 5 | . . . . 5 Triggered . | . . . . . Machines | -11 -10 -10 -10 -9 ---------- Run | Yrd Mat Min Exi Min Machines Disabled . | . . . . . Max in Single Turn . | . . . . . Machines Repaired . | . . . . . Machines Dismantled . | . . . . . Machines Sabotaged . | . . . . . Overloaded Fab Kills . | . . . . . Hacking | -11 -10 -10 -10 -9 --------- Run | Yrd Mat Min Exi Min Machines Accessed 5 | . 4 . 1 . Terminals 4 | . 4 . . . Fabricators . | . . . . . Repair Stations . | . . . . . Recycling Units . | . . . . . Scanalyzers . | . . . . . Garrison Access . | . . . . . Total Hacks 11 | . 10 . 1 . Successful 5 | . 4 . 1 . Failed 5 | . 5 . . . Catastrophic . | . . . . . Database Lockouts 1 | . 1 . . . Manual 11 | . 10 . 1 . Terminals 10 | . 10 . . . Fabricators . | . . . . . Repair Stations . | . . . . . Recycling Units . | . . . . . Scanalyzers . | . . . . . Garrison Access . | . . . . . Terminal Hacks 3 | . 2 . 1 . Record 1 | . 1 . . . Robot Analysis 1 | . 1 . . . Derelict Proto ID Bank 1 | . . . 1 . Fabricator Hacks . | . . . . . Repair Station Hacks . | . . . . . Recycling Unit Hacks . | . . . . . Scanalyzer . | . . . . . Garrison Access Hacks . | . . . . . Unauthorized Hacks 2 | . 2 . . . Terminals 2 | . 2 . . . Botnet 1 | . 1 . . . Skim 1 | . 1 . . . Fabricators . | . . . . . Repair Stations . | . . . . . Recycling Units . | . . . . . Scanalyzers . | . . . . . Garrison Access . | . . . . . Data Cores Recovered . | . . . . . Used . | . . . . . Hacking Detections 3 | . 3 . . . Full Trace Events . | . . . . . Feedback Events . | . . . . . Feedback Blocked . | . . . . . Robot Schematics Acquired . | . . . . . Robots Built . | . . . . . Authchips . | . . . . . Time . | . . . . . Total Robot Build Rating . | . . . . . Part Schematics Acquired . | . . . . . Parts Built . | . . . . . Authchips . | . . . . . Time . | . . . . . Total Part Build Rating . | . . . . . Parts Repaired . | . . . . . Time . | . . . . . Parts Recycled . | . . . . . Recycled Matter . | . . . . . Retrieved Matter . | . . . . . Retrieved Components . | . . . . . Parts Scanalyzed . | . . . . . Part Schematics Acquired . | . . . . . Parts Damaged . | . . . . . Bothacking | -11 -10 -10 -10 -9 ------------ Run | Yrd Mat Min Exi Min Used RIF Installer . | . . . . . Robots Hacked . | . . . . . Non-combat . | . . . . . Combat . | . . . . . Robot Hacks Applied . | . . . . . Relay Couplers Released . | . . . . . Fabnet Peak Effective % . | . . . . . Robots Rewired . | . . . . . Allies Hacked . | . . . . . Hacks Repelled . | . . . . . Allies | -11 -10 -10 -10 -9 -------- Run | Yrd Mat Min Exi Min Total Allies 2 | . . 2 . . Largest Group 2 | . . 2 2 . Highest-Rated Group 41 | . . 41 41 . Highest-Rated Ally 31 | . . 31 31 . Total Orders . | . . . . . Ally Attacks 3 | . . 3 . . Total Damage 63 | . . 63 . . Kills 1 | . . 1 . . Allies Corrupted . | . . . . . Allies Melted . | . . . . . Intel | -11 -10 -10 -10 -9 ------- Run | Yrd Mat Min Exi Min Robot Analysis Total 1 | . 1 . . . Derelict Logs Recovered . | . . . . . Drone Launches . | . . . . . Drone Recoveries . | . . . . . Exploration | -11 -10 -10 -10 -9 ------------- Run | Yrd Mat Min Exi Min Turns Passed 2851 | 141 1571 468 310 361 Spaces Moved 1627 | 71 822 347 220 167 Core 22 | 22 . . . . Treads 3 | . . . . 3 Legs 1602 | 49 822 347 220 164 Wheels . | . . . . . Hover . | . . . . . Flight . | . . . . . Fastest Speed 50 | 50 120 120 120 120 Average Speed 129 | 125 123 120 120 188 Slowest Speed 250 | 250 190 120 120 190 Overloaded Moves . | . . . . . Propulsion Burnouts . | . . . . . Robots Hopped . | . . . . . Cave-ins Triggered . | . . . . . Exploration Rate (%) 57 | 5 88 80 60 53 Regions Visited 4 Branch Regions 3 Pre-discovered Areas . | . . . . . Known Exits Taken . | . . . . . Unknown Exits Taken 4 | 1 1 1 1 . Scrap Searched 3 | . . . . 3 Spaces Dug . | . . . . . Terrain Destroyed 24 | . . . . 24 Melee . | . . . . . Projectile . | . . . . . AOE 24 | . . . . 24 Terrain Rammed . | . . . . . Walls Destroyed . | . . . . . Machines Disabled . | . . . . . Actions | -11 -10 -10 -10 -9 --------- Run | Yrd Mat Min Exi Min Total 2217 | 101 1271 386 266 193 Wait 438 | 5 365 23 44 1 Move 1623 | 70 821 346 219 167 Hop . | . . . . . Pick Up 20 | 9 9 1 1 . Fast Attach 8 | 4 1 2 . 1 Attach 8 | 2 2 . . 4 Detach . | . . . . . Swap 9 | . 3 2 1 3 Drop 12 | . 7 4 1 . Fire 94 | 11 63 8 . 12 Melee . | . . . . . Ram . | . . . . . Kick . | . . . . . Crush . | . . . . . Escape Stasis . | . . . . . Rewire . | . . . . . Trap 5 | . . . . 5 Miscellaneous . | . . . . . Route ------- -11/Scrapyard -10/Materials (discovered 4 exits: [*Mat x3] / [*Min]) -10/Mines -10/Exiles -9/Mines History --------- Turn | Location | Event 7 | -11/Scrapyard | Discovered new exit (range 13) 142 | -11/Scrapyard | Entered Materials 163 | -10/Materials | Discovered new exit (range 13) 307 | -10/Materials | Build established: Mutant 747 | -10/Materials | Central database locked down 827 | -10/Materials | Discovered new exit (range 4) 1182 | -10/Materials | Discovered new exit (range 13) 1345 | -10/Materials | Discovered new exit (range 3) 1713 | -10/Materials | Entered Mines 1844 | -10/Mines | Found a damaged Exp. Sensor Array with a note attached 1847 | -10/Mines | Found Prototype Device 2020 | -10/Mines | Build established: Scavenger-Mutant 2156 | -10/Mines | Deemed a non-threat by the Exiles lab entrance 2156 | -10/Mines | Discovered new exit (range 5) 2181 | -10/Mines | Entered Exiles 2181 | -10/Exiles | Accompanied by 2 allies 2211 | -10/Exiles | Led the pair of lost Derelicts to a safe place 2211 | -10/Exiles | Met 8R-AWN 2269 | -10/Exiles | Met EX-HEX 2308 | -10/Exiles | Met EX-BIN 2325 | -10/Exiles | Aligned with FarCom system 2326 | -10/Exiles | Given EX-Vault access code 2355 | -10/Exiles | Opened EX-Vault 2359 | -10/Exiles | Identified Exp. Sensor Array 2364 | -10/Exiles | Found Superbattery 2387 | -10/Exiles | Warned to stay clear of 0b10 Research branches 2407 | -10/Exiles | Exiles lab attacked by MAIN.C 2466 | -10/Exiles | Discovered new exit (range 12) 2491 | -10/Exiles | Left Exiles lab with Superbattery 2491 | -10/Exiles | Entered Mines 2510 | -9/Mines | Core integrity fell below 50% 2589 | -9/Mines | Found a hidden stash of uninstalled traps 2777 | -9/Mines | Assembled infested the area 2845 | -9/Mines | Core integrity fell below 20% 2852 | -9/Mines | Destroyed by D-53 Grenadier with Mini Grenade Launcher Last Messages --------------- 02817_ K-01 Serf collects debris. 02817_ K-01 Serf destroyed. 02817_ as-71999 destroyed. 02817_ J5-HVA destroyed. 02817_ Destroyed Unknown Hover Unit. 02817_ as-78112 destroyed. 02817_ as-63829 destroyed. 02819_ Destroyed Unknown Hover Unit. 02821_ as-43290 destroyed. 02824_ The unstable cave ceiling collapses. 02825_ Acquired 2 matter. 02837_ The unstable cave ceiling collapses. 02837_ C-30 ARC bursts open, deploying its payload. 02837_ D-53 Grenadier unfolds itself. 02837_ Lgt. Armor Plating destroyed. 02840_ Aluminum Leg destroyed. 02841_ The unstable cave ceiling collapses. 02850_ Particle Gun destroyed. 02851_ Lgt. Treads destroyed. 02852_ The unstable cave ceiling collapses. Map ----- +----------------------------------------------------+ | | | | | ?????????????????????????????????????????????????? | | ?????????????????????????????????????????????????? | | ?????????????????????????????????????????????????? | | ?????????????????????????????????????????????????? | | ?????????????????????????????????????????????????? | | ?????????????????????????????????????????????????? | | ?????????????????????????????????????????##??????? | | ????????????????????????????????????????## ?????? | | ????????????????????????????????????????# ?????? | | ????????????????????????????????# ??????? ?????? | | ???????????????????????????????# #????# ###??? | | ?????????????????????????? ### #????# ##?? | | ???????????????????????? " ##???# #?? | | ???????????????????????? %! #???# #?? | | ????????????????????????? =% ##### #?? | | ?????????????????????????? ! ### | | ???????????????????????????# t ## | | ????????????????????????????# ######## | | ????????????????????????##### #??## # ! | | ?????????????????????#### #???#### ### | | ?????????????????????# ###????# #?# | | ??????????????????#### ##???# #? | | ????????????????# # ##### #? | | ????????????????# g @ d #? | | ?????????????????### d % #? | | ??????????????????### * # ########### | | ????????????????????### # # #?????????# | | ??????????????????????# # #?# #?????????? | | ??????????????????????### #######?##?# #????????## | | ?????????????????????????????????????# #???????## | | ?????????????????????????????????????# #???????# | | ?????????????????????????????????????# #???????# | | ?????????????????????????????????????? #??????## | | ?????????????????????????????????????? #?????## | | ?????????????????????????????????????? #???### | | ???????????????????####??????????????? #??## | | ??????????????????## ##?????????????# #??# | | ?????????????????## ^##??????????### ####!""" | | ???????????###??## ^ ^##?????????# % """ | | ??????????## ### ^^ ##????????# ! !""" | | ??????????# #????????# #### | | ??????????# #????????# #### | | ??????????## ## #????????# | | ???????????## #### #??????### ### ##### | | ????????????### #??## ######### #?## ##???? | | ??????????????# #???# #??####????? | | ??????????????# #??# #???????? | | ############### #?# ######### ## #???????? | +----------------------------------------------------+ Best States ------------- Heat Dissipation 39 Energy Generation 14 Energy Capacity 265 Matter Stores 300 Matter Capacity 300 Sight Range 16 Robot Scan Range 20 Terrain Scan Density 10 ECM Strength 1 Armor Coverage 150 Evasion (%) 55 Recoil Reduction 2 Item Schematics ----------------- None Robot Schematics ------------------ None Fabricated ------------ Nothing Alien Tech Used ----------------- None Achievements -------------- None Challenges ------------ None Game ------ Seed ThermoelectricDerelictScreen Manual? 0 Play Time 00:24:25 Cumulative 94.5 hours Start 2024.12.03 @ 15:55:31 End 2024.12.03 @ 16:25:01 Sessions 1 Manual Loads 0 Difficulty Rogue Special Mode None Game No. 99 Rogue 99 Adventurer 0 Explorer 0 Win Type - Total 0 Types 0/0/0/0/0/0/0/0/0 Lore% 15 Gallery% 41 Achievement% 38 Wizard Run 0 Options --------- Layout 2 ASCII 0 Keyboard 0 Movement Mouse Keybinds 0 Fullscreen 0 Font 14/SmallcapsGlow Map View 55x47 Zoom Use 9% Tactical HUD 1 Map Filters NONE Filters NONE Steam 1 RUN: 68420b38-8e49-44ba-b309-bf47c379b1c0